[Event "Krakow Championship-A 2022"]
[Site "Krakow"]
[Date "2022.07.02"]
[Round "9.7"]
[White "Rudolf, Michal"]
[Black "Turski, Bartlomiej"]
[Result "0-1"]
[ECO "B30"]
[WhiteElo "2361"]
[BlackElo "2192"]
[Annotator "TA"]
[PlyCount "92"]
[EventDate "2022.06.25"]
[EventType "swiss"]
[EventCountry "POL"]
[SourceTitle "playchess.com"]
[Source "ChessBase"]
[SourceQuality "1"]
[TimeControl "40/5400+30:1800+30"]

{[%evp 15,92,9,14,4,27,8,0,4,17,15,23,8,12,0,27,14,27,37,30,33,31,30,20,20,54,44,52,61,80,58,56,6,70,59,56,65,69,64,68,45,59,8,11,11,9,-20,-21,-37,0,-59,-50,-116,-106,-126,-127,-268,-218,-226,-221,-269,-270,-322,-307,-299,-268,-290,-290,-290,-290,-455,-455,-618,-616,-603,-583,-736,-735,-648,-616]} 1. e4 {[%emt 0:00:09]} c5 {[%emt 0:00:05]} 2. Nf3 {[%emt 0:00:04]} Nc6 {[%emt 0:00:05]} 3. Bb5 {[%emt 0:00:32]} e6 {[%emt 0:00:06]} 4. O-O {[%emt 0:00:14]} Nge7 {[%emt 0:00:05]} 5. Re1 {[%emt 0:00:07]} a6 {[%emt 0:00:05]} 6. Bxc6 {[%emt 0:00:10]} Nxc6 {[%emt 0:00:24]} 7. d4 {[%emt 0:00:07]} cxd4 {[%emt 0:00:07]} 8. Nxd4 {[%emt 0:00:04]} Qc7 {[%emt 0:00:04]} 9. Nxc6 {[%emt 0:00:15] B30: Sicilian: 2...Nc6 3 Bb5, lines without ...g6.} bxc6 {[%emt 0:00:10]} 10. e5 {[%emt 0:01:26]} d5 {[%emt 0:00:31]} 11. c4 {[%emt 0:00:50] The position is equal.} Bc5 {[%emt 0:06:27] [#]} 12. Qg4 $146 {[%emt 0:00:43]} ({Predecessor:} 12. Be3 Bxe3 13. Rxe3 O-O 14. Qh5 f6 15. Nd2 fxe5 16. Qxe5 Qxe5 17. Rxe5 Rb8 18. b3 {1-0 (57) Efimenko,Z (2638)-Moiseenko,A (2643) Kharkov 2008}) 12... O-O {[%emt 0:07:21]} 13. Bg5 $1 {[%emt 0:00:11] Prevents f6.} Kh8 $1 {[%emt 0:04:37]} 14. Qh4 {[%emt 0:03:58][%cal Ob2b4]} Rb8 {[%emt 0:12:28]} 15. b3 {[%emt 0:06:46]} f6 {[%emt 0:14:28]} 16. exf6 {[%emt 0:02:13] [#] Bf4 is the strong threat.} Qf7 {[%emt 0:00:20][%cal Rg7f6]} 17. Bf4 {[%emt 0:11:56]} Qxf6 {[%emt 0:02:00]} 18. Qxf6 {[%emt 0:03:07]} Rxf6 {[%emt 0:00:07]} 19. Bg3 {[%emt 0:06:11]} ({But not} 19. Bxb8 Bxf2+ 20. Kf1 Bd4+ 21. Ke2 Bxa1 $15) 19... Bd4 {[%emt 0:09:20]} 20. Nc3 {[%emt 0:04:11][%cal Bb1c3,Bc3d1,Bd1e3][%mdl 32]} Rb7 {[%emt 0:13:19]} 21. Rac1 {[%emt 0:02:39]} Rbf7 {[%emt 0:01:34][%cal Rf6f2]} 22. Nd1 {[%emt 0:08:47]} Bd7 {[%emt 0:03:38]} 23. Rc2 {[%emt 0:03:39]} (23. Ne3 $14) 23... h6 {[%emt 0:03:37]} (23... dxc4 $11 24. b4 e5) 24. Be5 $14 {[%emt 0:04:15]} Bxe5 {[%emt 0:01:12]} 25. Rxe5 {[%emt 0:00:06]} Rf5 {[%emt 0:00:48]} 26. Rxf5 {[%emt 0:02:24]} Rxf5 {[%emt 0:01:00][%mdl 4096] Endgame KRB-KRN} 27. Ne3 {[%emt 0:01:55]} Re5 {[%emt 0:01:10]} 28. Rd2 {[%emt 0:00:57]} (28. Kf1 $14) 28... Kg8 {[%emt 0:01:42]} 29. Kf1 {[%emt 0:03:04]} Kf7 {[%emt 0:01:45]} 30. c5 {[%emt 0:09:01]} Re4 {[%emt 0:02:19] Inhibits Rd4.} 31. Rd3 {[%emt 0:00:32]} Rb4 {[%emt 0:00:51]} 32. Nc2 {[%emt 0:11:53]} (32. Nc4 $11) 32... Rb5 $1 $15 {[%emt 0:00:31]} 33. Rc3 {[%emt 0:00:10]} (33. b4 $15) 33... e5 $17 {[%emt 0:00:28]} 34. a4 {[%emt 0:04:35]} Rb8 {[%emt 0:02:04]} 35. Ke2 {[%emt 0:01:02] This move loses the game for White.} (35. Rf3+ $17 {is a better defense.} Ke6 36. Rg3) 35... d4 {[%emt 0:02:14]} 36. Rf3+ {[%emt 0:00:24]} Ke7 {[%emt 0:00:47] [#] Strongly threatening ...Bg4.} 37. Rg3 {[%emt 0:00:27] Inhibits Bg4+.} g5 {[%emt 0:00:39]} 38. Kd2 {[%emt 0:03:17]} Be6 {[%emt 0:01:36]} 39. b4 {[%emt 0:00:12]} Bf5 {[%emt 0:04:35]} 40. Rb3 {[%emt 0:00:20]} Ke6 {[%emt 0:01:08]} 41. Na3 {[%emt 0:33:57]} Kd5 {[%emt 0:31:32] Prevents Nc4.} 42. Rf3 {[%emt 0:00:28]} (42. a5 $142) 42... Be4 $19 {[%emt 0:03:22] Black is clearly winning.} 43. Rf6 {[%emt 0:00:26][%csl Gc5][%cal Rf6d6]} Rxb4 {[%emt 0:00:41] White must now prevent ...Rb2+.} 44. f3 {[%emt 0:00:44]} Bh7 {[%emt 0:00:18]} ({Stronger than} 44... Rb2+ 45. Kc1 Rxg2 46. fxe4+ Kxe4 47. Rxc6 $11) 45. Rxh6 {[%emt 0:00:32]} Rxa4 {[%emt 0:00:18]} 46. Rxh7 {[%emt 0:00:42]} Rxa3 {[%emt 0:00:04] Weighted Error Value: White=0.29 (precise) /Black=0.08 (flawless)} 0-1

[Event "Krakow Championship-A 2022"]
[Site "Krakow"]
[Date "2022.07.02"]
[Round "9.8"]
[White "Seemann, Jakub"]
[Black "Jacobsen, Mikkel Manosri"]
[Result "1-0"]
[ECO "D30"]
[WhiteElo "2363"]
[BlackElo "2251"]
[Annotator "TA"]
[PlyCount "65"]
[EventDate "2022.06.25"]
[EventType "swiss"]
[EventCountry "POL"]
[SourceTitle "playchess.com"]
[Source "ChessBase"]
[SourceQuality "1"]
[TimeControl "40/5400+30:1800+30"]

{[%evp 17,65,14,18,13,21,22,27,0,4,7,26,20,22,24,59,0,10,0,131,122,129,125,96,66,60,64,59,0,340,0,0,42,23,0,764,745,1595,1558,1521,1504,5735,3283,29983,29984,29984,29985,29986,6459,29992,29993]} 1. d4 {[%emt 0:00:01]} d5 {[%emt 0:00:05]} 2. c4 {[%emt 0:00:07]} e6 3. Nf3 {[%emt 0:00:06]} Nf6 {[%emt 0:00:08]} 4. g3 {[%emt 0:00:07]} Bb4+ {[%emt 0:01:38]} 5. Bd2 {[%emt 0:00:04]} Be7 {[%emt 0:00:03]} 6. Bg2 {[%emt 0:00:08]} O-O {[%emt 0:00:05]} 7. O-O {[%emt 0:00:09]} Nbd7 {[%emt 0:00:06]} 8. Qc2 {[%emt 0:00:05]} c6 {[%emt 0:00:04]} 9. Bf4 $1 {[%emt 0:00:07] 9.Bf4 is better than 9.Rd1.} Ne4 {[%emt 0:02:16]} 10. h4 {[%emt 0:00:06] E08: Closed Catalan: Main Line: 7 Qc2.} h6 {[%emt 0:00:46]} 11. Nc3 {[%emt 0:00:09]} g5 {[%emt 0:00:13] [#]} 12. Bc1 $146 {[%emt 0:00:05] White has an edge.} (12. Nxe4 dxe4 13. Nxg5 hxg5 $17) ({Predecessor:} 12. hxg5 hxg5 13. Be3 Nd6 14. cxd5 exd5 15. Rad1 Nb6 16. b3 Bf5 17. Qc1 f6 18. Nh2 {0-1 (64) Lenderman,A (2638)-Ipatov,A (2631) Charlotte 2019}) 12... f5 {[%emt 0:00:08][%cal Rg5h4]} 13. g4 {[%emt 0:13:07]} Nb6 {[%emt 0:12:39]} (13... fxg4 14. Nd2 $16) 14. cxd5 {[%emt 0:00:11]} exd5 {[%emt 0:12:46]} 15. Ne5 Bd6 16. hxg5 {[%emt 0:06:16]} (16. gxf5 $14 {feels stronger.} Nxc3 17. Qxc3) 16... Nxg5 $11 {[%emt 0:05:49]} 17. a4 {[%emt 0:16:30][%cal Ba2a4,Ba4a5][%mdl 32]} Be6 {[%emt 0:27:51]} (17... Bxe5 18. dxe5 Nc4 19. f4 $16) (17... Ne6 $11 {keeps the balance.} 18. e3 (18. Bxh6 $2 Nxd4 19. Qd1 Bxe5 $19) 18... Qh4) 18. f4 $16 {[%emt 0:02:04]} Ne4 {[%emt 0:05:14]} 19. a5 {[%emt 0:04:22]} Nd7 {[%emt 0:01:57]} 20. gxf5 {[%emt 0:01:10]} (20. a6 {looks sharper.} b5 21. Nxe4 dxe4 22. Rf2) 20... Bxf5 {[%emt 0:02:14] [#] ...Qh4 is the strong threat.} 21. Nxe4 {[%emt 0:02:01]} dxe4 {[%emt 0:02:18]} 22. Bxe4 (22. a6 $1 $14 b6 23. Bxe4) 22... Nxe5 $4 {[%emt 0:06:32][%mdl 8192]} (22... Kh8 $1 $11 {and Black stays safe.} 23. Bxf5 Bxe5) 23. dxe5 $2 {[%emt 0:06:44]} (23. Bxf5 Kh8 24. dxe5 Qh4 $16) (23. fxe5 $18 Bxe4 24. Qxe4 Rxf1+ 25. Kxf1 Qf8+ 26. Bf4) 23... Qh4 $14 {[%cal Og8h8] Strongly threatening ...Kh8!} 24. Bxf5 {[%emt 0:00:41] Dancing on a razor blade.} Kh8 $1 {[%emt 0:02:13][%cal Of8f5] [#] ( -> ...Rxf5!)} 25. Kg2 {[%emt 0:02:12][%cal Bg1g2,Bg2f3,Bf3e4,Be4e5][%mdl 32]} (25. Be4 $5 {[%cal Re5d6]} Bb4 26. Bg2 $14) 25... Bc5 $2 {[%emt 0:07:33][%mdl 8192]} 26. Kf3 $18 {[%emt 0:02:03]} ({Not} 26. Be6 Rg8+ 27. Kf3 (27. Bxg8 {gets mated.} Qg4+ 28. Kh2 Qh5+ 29. Kg3 Rxg8+) 27... Rg1 28. Rxg1 (28. Qxc5 Rxf1+ 29. Ke4 Rd8 $11) 28... Qf2+ 29. Ke4 (29. Kg4 Qxg1+ 30. Kh3 Qh1+ 31. Kg3 Qe1+ 32. Kh2 Qg1+ 33. Kh3 Qh1+ 34. Kg4 Qg1+ 35. Kh5 Qh2+ 36. Kg6 Qg1+ 37. Kf5 Kg7 $11) 29... Qd4+ 30. Kf5 Rf8+ 31. Kg6 Qxg1+ 32. Kh5 (32. Kxh6 Qh1+ 33. Kg5 Be7+ 34. Kg4 Qg2+ 35. Kh5 Qg3) 32... Qh2+ 33. Kg6 Qg1+ 34. Kh5 (34. Kxh6 Qh2+ 35. Kg5 Be7+ 36. Kg4 Qg2+ 37. Kh5 Qg3) 34... Qh2+ 35. Kg6 Qg1+ $11) 26... Rg8 {[%emt 0:03:56]} 27. Qxc5 {[%emt 0:04:07]} Qh5+ {[%emt 0:00:19]} 28. Ke4 {[%emt 0:01:32]} Raf8 {[%emt 0:00:18]} 29. e6 {[%emt 0:01:13] Intending Be3 and mate.} Rxf5 {[%emt 0:05:40]} 30. Qxf5 {[%emt 0:00:07]} Qxe2+ {[%emt 0:00:15]} 31. Be3 {[%emt 0:00:20]} Qc2+ {[%emt 0:00:21]} 32. Ke5 {[%emt 0:00:05]} Qxb2+ {[%emt 0:00:28]} 33. Bd4 {[%emt 0:00:10] Weighted Error Value: White=0.48/Black=1.16} 1-0

[Event "Krakow Championship-A 2022"]
[Site "Krakow"]
[Date "2022.07.02"]
[Round "9.9"]
[White "Paszewski, Mateusz"]
[Black "Szustakowski, Antoni"]
[Result "1/2-1/2"]
[ECO "A06"]
[WhiteElo "2286"]
[BlackElo "2265"]
[Annotator "TA"]
[PlyCount "54"]
[EventDate "2022.06.25"]
[EventType "swiss"]
[EventCountry "POL"]
[SourceTitle "playchess.com"]
[Source "ChessBase"]
[SourceQuality "1"]
[TimeControl "40/5400+30:1800+30"]

{[%evp 25,54,9,19,13,55,42,66,64,58,71,88,86,94,86,101,100,90,93,118,91,87,73,71,33,43,29,24,0,37,0,12]} 1. Nf3 {[%emt 0:00:15]} d5 {[%emt 0:00:10]} 2. e3 {[%emt 0:00:08]} Nf6 {[%emt 0:00:27]} 3. c4 {[%emt 0:00:03]} e6 {[%emt 0:00:07]} 4. Nc3 {[%emt 0:00:12]} c5 {[%emt 0:02:22]} 5. cxd5 {[%emt 0:00:26]} exd5 {[%emt 0:02:06]} 6. d4 {[%emt 0:00:05]} Nc6 {[%emt 0:00:52]} 7. Bb5 {[%emt 0:00:43]} a6 {[%emt 0:02:37]} 8. Bxc6+ {[%emt 0:00:19]} bxc6 {[%emt 0:08:28]} 9. O-O {[%emt 0:00:17]} Bd6 {[%emt 0:01:33]} 10. dxc5 {[%emt 0:00:20]} Bxc5 {[%emt 0:00:05]} 11. b3 {[%emt 0:00:01]} Bg4 {[%emt 0:05:21]} 12. Bb2 {[%emt 0:01:45]} O-O {[%emt 0:00:36]} 13. Ne2 {[%emt 0:01:36]} Bd6 {[%emt 0:07:13]} 14. Ne5 {[%emt 0:36:39] D32: Tarrasch Defence: Sidelines and lines without g3.} Bxe5 {[%emt 0:21:11]} 15. Bxe5 {[%emt 0:00:11]} Qe7 {[%emt 0:00:05] [#]} 16. Bb2 $146 {[%emt 0:02:44] White is slightly better.} ({Predecessor:} 16. Bxf6 Qxf6 17. f3 Bd7 18. Qd4 Qe7 19. Rac1 Rfe8 20. Kf2 a5 21. Rc5 h5 22. Rfc1 {½-½ (56) Howell,D (2655)-Houriez,C (2335) Novi Sad 2016}) 16... c5 {[%emt 0:00:09]} 17. h3 {[%emt 0:02:42]} Be6 {[%emt 0:08:55]} 18. Nf4 {[%emt 0:18:01]} Rfd8 {[%emt 0:02:16]} 19. Rc1 {[%emt 0:01:15]} ({Reject} 19. Nxe6 Qxe6 20. Rc1 Ne4 $11) 19... Rac8 {[%emt 0:01:53]} 20. Qe2 {[%emt 0:09:26]} Ne4 {[%emt 0:04:29]} 21. Rfd1 {[%emt 0:02:06]} a5 {[%emt 0:01:10]} 22. Qh5 {[%emt 0:01:52][%cal Rf4d5]} f5 {[%emt 0:03:44]} 23. Qe2 {[%emt 0:03:55]} Bf7 {[%emt 0:00:37]} 24. Qa6 {[%emt 0:03:07][%cal Of4d5]} Ra8 {[%emt 0:04:36]} 25. Qc6 {[%emt 0:00:55][%cal Rf4d5]} Rac8 {[%emt 0:00:37]} 26. Qa6 {[%emt 0:00:03][%cal Of4d5]} Ra8 {[%emt 0:00:06]} 27. Qc6 {[%emt 0:00:16][%cal Rf4d5]} Rac8 {[%emt 0:00:04] Weighted Error Value: White=0.13 (very precise) /Black=0.08 (flawless)} 1/2-1/2

[Event "Krakow Championship-A 2022"]
[Site "Krakow"]
[Date "2022.07.02"]
[Round "9.10"]
[White "Kozak, Antoni"]
[Black "Piekielny, Pawel"]
[Result "1-0"]
[ECO "A06"]
[WhiteElo "2459"]
[BlackElo "2230"]
[Annotator "TA"]
[PlyCount "69"]
[EventDate "2022.06.25"]
[EventType "swiss"]
[EventCountry "POL"]
[SourceTitle "playchess.com"]
[Source "ChessBase"]
[SourceQuality "1"]
[TimeControl "40/5400+30:1800+30"]

{[%evp 10,69,9,19,25,26,30,29,72,64,88,81,84,84,78,79,97,90,169,106,110,102,98,122,172,168,252,147,401,411,427,402,483,372,569,574,568,554,606,616,701,653,787,768,740,740,1219,1219,1195,1137,1205,1187,1307,1290,1227,1217,2475,2892,29991,29990,29989,29990]} 1. Nf3 {[%emt 0:00:11] Paehtz,Elisabeth} d5 {[%emt 0:00:08]} 2. e3 {[%emt 0:00:14]} Nf6 {[%emt 0:00:06][%cal Bg8f6,Bf6d5,Bd5b4][%mdl 32]} 3. c4 {[%emt 0:00:04]} e6 {[%emt 0:00:09]} 4. b3 {[%emt 0:00:03]} c5 {[%emt 0:00:09]} 5. Bb2 {[%emt 0:00:04]} Nc6 {[%emt 0:00:09]} 6. cxd5 {[%emt 0:00:05]} Nxd5 {[%emt 0:00:06] A13: English Opening: 1...e6.} 7. Nc3 {[%emt 0:02:54]} a6 {[%emt 0:01:20] Inhibits Bb5.} 8. Qc2 {[%emt 0:03:45] [#]} Ndb4 $146 {[%emt 0:07:15] [#] White has an edge.} ({Predecessor:} 8... f6 9. a3 Nxc3 10. Bxc3 e5 11. Bd3 g6 12. h4 Qe7 13. Be4 Be6 14. Qb2 Rc8 {1-0 (28) Paehtz,E (2456)-Zawadzka,J (2418) Antalya 2019 CBM 190 [Paehtz,Elisabeth]}) 9. Qb1 {[%emt 0:01:28]} f6 {[%emt 0:08:28]} 10. a3 {[%emt 0:01:13]} Nd5 {[%emt 0:00:04]} 11. Bd3 {[%emt 0:00:05]} Nxc3 {[%emt 0:12:12]} 12. Bxc3 {[%emt 0:00:13]} Kf7 {[%emt 0:00:30]} 13. h4 {[%emt 0:04:57] White is more active.} ({Wrong is} 13. Bxh7 $2 f5 14. Bxf5 exf5 $19) 13... Be7 {[%emt 0:00:14]} (13... h5 $16 {was worth a try.}) 14. g4 {[%emt 0:12:12]} (14. Bxh7 $18 {Black must now prevent Qg6+.} f5 15. Ng5+ Kf8 16. f4) 14... e5 $16 {[%emt 0:03:09] [#]} 15. Rg1 {[%emt 0:13:34]} ({Of course not} 15. Bxh7 Rxh7 16. Qxh7 Bxg4 $14) 15... Be6 {[%emt 0:03:58]} 16. Bxh7 {[%emt 0:03:48]} Rxh7 {[%emt 0:06:20]} 17. Qxh7 $18 {[%emt 0:00:47] Hoping for g5.} Qd5 {[%emt 0:00:05]} (17... Qg8 $142 18. Qb1 Bd5) 18. Rg3 {[%emt 0:00:58]} (18. e4 $18 Qd8 19. g5) 18... e4 $2 {[%emt 0:29:16][%mdl 8192] [#] Loses the game.} (18... Rg8 $16 19. Ng1 (19. g5 f5 $16) 19... Ke8) 19. g5 $1 {[%emt 0:00:04][%cal Og5f6] Threatens to win with gxf6!} Bf5 {[%emt 0:00:04]} (19... Ke8 20. gxf6) 20. g6+ {[%emt 0:00:03]} Ke8 {[%emt 0:01:33]} 21. Ng1 {[%emt 0:02:29] aiming for Qh8+.} Ne5 {[%emt 0:06:03]} (21... Bf8 $142 22. h5 Ne7) 22. Qxg7 {[%emt 0:01:40] And now Qh8+ would win.} Kd7 {[%emt 0:00:42]} 23. Bxe5 {[%emt 0:02:37]} Qxe5 {[%emt 0:00:05]} 24. Rd1 {[%emt 0:00:09]} Qd5 {[%emt 0:01:42]} 25. h5 {[%emt 0:01:22]} Qxb3 {[%emt 0:00:52]} 26. h6 {[%emt 0:01:30]} Rg8 {[%emt 0:00:10]} 27. Qh7 {[%emt 0:00:56]} Be6 {[%emt 0:02:04] [#]} 28. Qxg8 $3 {[%emt 0:00:13][%mdl 512]} Bxg8 {[%emt 0:00:09]} 29. h7 {[%emt 0:00:03]} Bc4 {[%emt 0:00:51]} 30. h8=Q {[%emt 0:00:03]} Qd3 {[%emt 0:00:09]} 31. Qh3+ {[%emt 0:00:04]} Kc7 {[%emt 0:00:14]} 32. g7 {[%emt 0:00:11]} Bb3 {[%emt 0:00:27]} 33. g8=Q {[%emt 0:00:10]} Bxd1 {[%emt 0:00:07]} 34. Qgc8+ {[%emt 0:02:12]} Kb6 {[%emt 0:00:05]} 35. Qhd7 {[%emt 0:00:06] Weighted Error Value: White=0.16 (very precise) /Black=0.62} 1-0

[Event "Krakow Championship-A 2022"]
[Site "Krakow"]
[Date "2022.07.02"]
[Round "9.11"]
[White "Murphy, Conor E"]
[Black "Trybus, Daniel"]
[Result "1-0"]
[ECO "E62"]
[WhiteElo "2395"]
[BlackElo "2145"]
[Annotator "TA"]
[PlyCount "121"]
[EventDate "2022.06.25"]
[EventType "swiss"]
[EventCountry "POL"]
[SourceTitle "playchess.com"]
[Source "ChessBase"]
[SourceQuality "1"]
[TimeControl "40/5400+30:1800+30"]

{[%evp 18,121,78,68,61,70,61,58,70,85,104,-41,0,0,81,86,87,90,117,105,362,181,176,179,212,231,231,233,208,185,318,301,336,288,283,292,287,277,275,287,282,285,281,262,247,248,251,237,308,322,407,354,476,468,420,422,558,608,608,608,600,596,700,700,694,668,606,722,802,729,790,795,791,790,954,949,926,916,1382,896,864,798,1481,1357,1327,1248,1139,1121,1102,1085,1079,931,1019,1014,29972,29974,29975,29973,29978,29979,29981,29982,29982,29982,29982,29982]} 1. Nf3 {[%emt 0:03:18]} Nf6 {[%emt 0:00:10]} 2. g3 {[%emt 0:00:19]} g6 {[%emt 0:00:04]} 3. Bg2 {[%emt 0:00:21]} Bg7 {[%emt 0:00:04]} 4. c4 {[%emt 0:00:30]} O-O {[%emt 0:00:05]} 5. d4 {[%emt 0:00:44]} d6 {[%emt 0:00:08]} 6. Nc3 {[%emt 0:00:35]} c6 {[%emt 0:00:06]} 7. O-O {[%emt 0:00:36]} Qa5 {[%emt 0:00:03]} 8. e4 {[%emt 0:01:12]} e5 {[%emt 0:00:03]} 9. h3 {[%emt 0:01:18]} exd4 {[%emt 0:00:24]} 10. Nxd4 {[%emt 0:00:21]} ({Much worse is} 10. Qxd4 Nd5 $1 11. Qd3 Nxc3 12. bxc3 Qxc3 13. Qxc3 Bxc3 $15) 10... Nbd7 {[%emt 0:01:40] E62: King's Indian: Fianchetto: 6...c6 and Panno Variation (6...Nc6) without ...a6.} 11. Qe2 {[%emt 0:03:57]} Re8 {[%emt 0:05:48]} 12. Rd1 {[%emt 0:02:07]} Nb6 {[%emt 0:03:51] White is slightly better.} 13. Qd3 {[%emt 0:02:27] [#]} Qc5 $146 {[%emt 0:08:45]} ({Predecessor:} 13... Bd7 14. Bf4 Rad8 15. Bxd6 Bxh3 16. c5 Bxg2 17. Nb3 Qb4 18. cxb6 Bxe4 19. Bxb4 Bxd3 20. bxa7 {0-1 (102) Fridman,D (2644)-McShane,L (2661) England 2019}) 14. Nb3 {[%emt 0:30:53]} (14. b3 $16) 14... Qxc4 {[%emt 0:06:32]} (14... Qb4 $5 {[%cal Rb6c4]}) 15. Qxd6 {[%emt 0:00:34]} Be6 {[%emt 0:06:20]} (15... a5 $11) 16. Rd4 $16 {[%emt 0:17:28]} Nc8 {[%emt 0:16:12] [#]} 17. Qa3 $36 {[%emt 0:04:56][%mdl 2048] Black is under strong pressure.} Bf8 {[%emt 0:08:42]} 18. Qa5 {[%emt 0:00:46]} b6 $2 {[%emt 0:06:19][%mdl 8192] Loses the game.} (18... Qa6 $16 {was necessary.}) 19. Rxc4 {[%emt 0:03:17]} (19. Qg5 $142 Qa6 20. Ra4 (20. Qxf6 Bxb3 21. Qxc6 Ne7 $16)) 19... bxa5 $18 {[%emt 0:00:02]} 20. Rxc6 {[%emt 0:00:15] Strongly threatening e5.} Rb8 {[%emt 0:05:09]} 21. Nxa5 {[%emt 0:02:44]} Nd7 {[%emt 0:03:31]} 22. Rc7 {[%emt 0:08:54]} Nc5 {[%emt 0:06:17]} 23. Nc6 {[%emt 0:02:04]} Ra8 {[%emt 0:00:09]} (23... Bd6 $142) 24. e5 {[%emt 0:01:12]} Na6 {[%emt 0:01:54]} 25. Rb7 {[%emt 0:01:34]} Nc5 {[%emt 0:01:23]} 26. Rb5 {[%emt 0:00:32]} a6 {[%emt 0:03:12] [#]} 27. Rxc5 {[%emt 0:05:07]} Bxc5 {[%emt 0:00:22]} 28. Ne4 {[%emt 0:00:22]} Be7 {[%emt 0:03:48]} 29. Nxe7+ {[%emt 0:02:51]} Nxe7 {[%emt 0:00:22]} 30. Nf6+ {[%emt 0:00:15]} Kg7 {[%emt 0:00:01]} 31. Nxe8+ {[%emt 0:00:44]} Rxe8 {[%emt 0:00:01]} 32. Bg5 {[%emt 0:00:36]} Nd5 {[%emt 0:01:54]} 33. Rd1 {[%emt 0:00:20]} Nb6 {[%emt 0:00:49]} 34. b3 {[%emt 0:00:39]} a5 {[%emt 0:01:08]} 35. Bd8 {[%emt 0:01:54]} Nd7 {[%emt 0:00:19]} 36. Bxa5 {[%emt 0:00:14]} Nxe5 {[%emt 0:00:01]} 37. f4 {[%emt 0:00:16]} Nd7 {[%emt 0:01:09]} 38. Bc6 {[%emt 0:00:26]} Re7 {[%emt 0:00:03]} 39. Bb4 {[%emt 0:00:49]} Re8 {[%emt 0:00:01]} 40. Rxd7 {[%emt 0:00:28]} ({Less strong is} 40. Bxd7 Rd8 41. Bc3+ Kf8 $16) 40... Bxd7 {[%emt 0:00:19]} 41. Bxd7 {[%emt 0:30:06] A strong pair of Bishops.} Re2 {[%emt 0:30:03]} 42. a4 {[%emt 0:01:12] Black must now prevent a5.} Re3 {[%emt 0:00:01]} 43. Kf2 {[%emt 0:00:32]} Rxb3 {[%emt 0:00:06]} 44. Be1 {[%emt 0:00:00]} Kf6 {[%emt 0:00:00]} 45. a5 {[%emt 0:00:00]} Ke7 {[%emt 0:00:00]} 46. Ba4 {[%emt 0:00:00]} Rb2+ {[%emt 0:00:00]} 47. Kf3 {[%emt 0:00:00] a6 is the strong threat.} Kd6 {[%emt 0:00:00]} 48. Bc3 {[%emt 0:00:00] White wants to mate with Be5+.} Rb7 {[%emt 0:00:00]} 49. Bd1 {[%emt 0:00:00]} Kc5 {[%emt 0:00:00]} 50. Kf2 {[%emt 0:00:00]} Kc4 {[%emt 0:00:00]} 51. Bf6 {[%emt 0:00:00]} Kb5 {[%emt 0:00:00]} 52. Bd8 {[%emt 0:00:00] Hoping for Be2+.} Rd7 {[%emt 0:00:00]} 53. Be2+ {[%emt 0:00:00]} Kc6 {[%emt 0:00:00]} 54. Bb6 {[%emt 0:00:00] Threatens to win with Be3.} Kb7 {[%emt 0:00:00]} 55. Be3 {[%emt 0:00:00] aiming for a6+.} f6 {[%emt 0:00:00]} 56. a6+ {[%emt 0:00:00][%cal Ba5a6,Ba6a7][%mdl 32] White mates.} Kb8 {[%emt 0:00:00]} 57. h4 {[%emt 0:00:00]} h6 {[%emt 0:00:00]} 58. g4 {[%emt 0:00:00]} g5 {[%emt 0:00:00]} 59. hxg5 {[%emt 0:00:00]} hxg5 {[%emt 0:00:00]} 60. fxg5 {[%emt 0:00:00]} fxg5 {[%emt 0:00:00]} 61. a7+ {[%emt 0:00:00] Weighted Error Value: White=0.19 (very precise) /Black=0.50} 1-0